bitfinex-derivatives/quotes_BTCF0:USTF0_20250906
["timestamp","ask_amount","ask_price","bid_price","bid_amount"]
[1757194747362,0.63777735,110220.0,110210.0,0.48537285]
[1757194750973,0.63777735,110220.0,110210.0,0.1492055]
[1757194751170,0.63777735,110220.0,110210.0,0.48537285]
[1757194752272,0.63777735,110220.0,110210.0,0.1492055]
[1757194752472,0.63777735,110220.0,110210.0,0.48537285]
[1757194755175,0.02797735,110220.0,110210.0,0.48537285]
[1757194756371,0.02797735,110220.0,110210.0,0.37110735]
[1757194757567,0.02797735,110220.0,110210.0,0.4853053]
[1757194762480,0.003,110220.0,110210.0,0.4853053]
[1757194764382,0.003,110220.0,110210.0,0.37110735]
[1757194764882,0.002,110220.0,110210.0,0.37110735]
[1757194765383,0.77703008,110230.0,110210.0,0.37110735]
[1757194765684,0.80756991,110230.0,110220.0,0.47340321]
[1757194766285,0.82051991,110230.0,110220.0,0.47340321]
[1757194766883,0.82451991,110230.0,110220.0,0.47793321]
[1757194767183,0.82451991,110230.0,110220.0,0.14176586]
[1757194767382,0.82451991,110230.0,110220.0,0.47793321]
[1757194768783,0.82651991,110230.0,110220.0,0.47793321]
[1757194770286,0.82651991,110230.0,110220.0,0.36372735]
[1757194771990,0.94847991,110230.0,110220.0,0.36372735]
[1757194779895,0.94847991,110230.0,110220.0,0.52701382]
[1757194782201,0.94847991,110230.0,110220.0,0.36372735]
[1757194788006,0.94751991,110230.0,110220.0,0.36372735]
[1757194799406,0.94751991,110230.0,110220.0,0.69975722]
[1757194800009,0.94751991,110230.0,110220.0,0.86304369]
[1757194800206,1.28361852,110230.0,110220.0,0.19084647]
[1757194800404,1.27751991,110230.0,110220.0,0.27249904]
[1757194800605,0.14478722,110230.0,110220.0,0.60747765]
[1757194800808,1.30392583,110230.0,110220.0,0.44419118]
[1757194801009,1.30392583,110230.0,110220.0,0.10809257]
[1757194801412,1.30392583,110230.0,110220.0,0.44419118]
[1757194808210,0.48088583,110230.0,110220.0,0.44419118]
[1757194808516,1.30380583,110230.0,110220.0,0.44419118]
[1757194809412,1.30380583,110230.0,110220.0,0.10809257]
[1757194809715,1.30380583,110230.0,110220.0,0.4768522]
[1757194810717,1.30380583,110230.0,110220.0,0.36253861]
[1757194812818,0.96770722,110230.0,110220.0,0.36253861]
[1757194813019,1.30380583,110230.0,110220.0,0.36253861]
[1757194816124,0.96770722,110230.0,110220.0,0.36253861]
[1757194816318,1.30380583,110230.0,110220.0,0.36253861]
[1757194819424,1.30380583,110230.0,110220.0,0.52582508]
[1757194821825,1.30380583,110230.0,110220.0,0.36253861]
[1757194822926,1.30380583,110230.0,110220.0,0.4768576]
[1757194824126,1.30380583,110230.0,110220.0,0.36253861]
[1757194824329,1.30380583,110230.0,110220.0,0.47685761]
[1757194827623,0.14478722,110230.0,110220.0,0.47685761]
[1757194827928,1.30292583,110230.0,110220.0,0.47685761]
[1757194830136,1.30292583,110230.0,110220.0,0.36253861]
[1757194837145,1.66292583,110230.0,110220.0,0.36253861]
[1757194841244,1.66292583,110230.0,110220.0,0.52582508]
[1757194842748,1.66292583,110230.0,110220.0,0.36253861]
[1757194844150,1.66292583,110230.0,110220.0,0.02644]
[1757194844350,1.66292583,110230.0,110220.0,0.36253861]
[1757194848654,1.65892583,110230.0,110220.0,0.36253861]
[1757194848953,1.66092583,110230.0,110220.0,0.36253861]
[1757194849253,1.65992583,110230.0,110220.0,0.36253861]
[1757194861472,1.32382722,110230.0,110220.0,0.02644]
[1757194865276,1.32382722,110230.0,110220.0,0.36256957]
[1757194868275,1.32382722,110230.0,110220.0,0.47688109]
[1757194868774,1.32382722,110230.0,110220.0,0.36256957]
[1757194869375,1.32382722,110230.0,110220.0,0.4768816]
[1757194878284,1.32382722,110230.0,110220.0,0.36256957]
[1757194881785,0.96382722,110230.0,110220.0,0.36256957]
[1757194883786,0.96382722,110230.0,110220.0,0.52585604]
[1757194886090,0.96382722,110230.0,110220.0,0.18972647]
[1757194889589,0.96382722,110230.0,110220.0,0.02644]
[1757194892998,0.96382722,110230.0,110220.0,0.36256957]
[1757194895600,0.96382722,110230.0,110220.0,0.02644]
[1757194899102,0.96382722,110230.0,110220.0,0.36256957]
[1757194900003,0.96266722,110230.0,110220.0,0.36256957]
[1757194903906,0.96266722,110230.0,110220.0,0.02644]
[1757194904205,0.96266722,110230.0,110220.0,0.36256957]
[1757194915715,0.96266722,110230.0,110220.0,0.02644]
[1757194915916,0.96266722,110230.0,110220.0,0.36256957]
[1757194919414,0.96266722,110230.0,110220.0,0.52585604]
[1757194922414,0.94151991,110230.0,110220.0,0.52585604]
[1757194923420,0.94151991,110230.0,110220.0,0.86193979]
[1757194925114,0.76999267,110230.0,110220.0,0.86193979]
[1757194925314,0.80550267,110230.0,110220.0,0.86193979]
[1757194925811,0.81454023,110230.0,110220.0,0.86193979]
[1757194928821,0.88843635,110230.0,110220.0,0.86193979]
[1757194929924,0.88843635,110230.0,110220.0,0.69865332]
[1757194931424,0.88843635,110230.0,110220.0,0.71199332]
[1757194932026,0.87569635,110230.0,110220.0,0.71199332]
[1757194933028,0.10570368,110230.0,110220.0,0.71199332]
[1757194933221,0.92642368,110230.0,110220.0,0.71199332]
[1757194935328,0.92642368,110230.0,110220.0,0.82631461]
[1757194937023,0.92642368,110230.0,110220.0,0.71199332]
[1757194937429,0.92642368,110230.0,110220.0,0.82631419]
[1757194938130,0.92642368,110230.0,110220.0,0.71199332]
[1757194938330,0.92642368,110230.0,110220.0,0.82631404]
[1757194939430,0.92642368,110230.0,110220.0,0.71199332]
[1757194940626,0.93959368,110230.0,110220.0,0.71199332]
[1757194941833,0.93959368,110230.0,110220.0,0.87527979]
[1757194944337,0.93959368,110230.0,110220.0,0.71199332]
[1757194951151,0.93959368,110230.0,110220.0,0.82630144]
[1757194953651,0.93959368,110230.0,110220.0,0.71199332]
[1757194954352,0.93959368,110230.0,110220.0,0.82629337]
[1757194955552,0.93959368,110230.0,110220.0,0.15408005]
[1757194955753,0.93959368,110230.0,110220.0,0.82629337]
[1757194961370,0.93959368,110230.0,110220.0,0.71199332]
[1757194964560,0.93959368,110230.0,110220.0,0.87527979]
[1757194966659,1.24959368,110230.0,110220.0,0.87527979]
[1757194969364,1.24959368,110230.0,110220.0,0.71199332]
[1757194980874,1.24959368,110230.0,110220.0,0.87527979]
[1757194983274,1.24959368,110230.0,110220.0,0.71199332]
[1757194985478,1.24959368,110230.0,110220.0,0.3758789]
[1757194989975,1.24959368,110230.0,110220.0,0.3768789]
[1757194990583,1.24959368,110230.0,110220.0,0.3758789]
[1757194991078,1.24959368,110230.0,110220.0,0.03978]
[1757194991278,1.25059368,110230.0,110220.0,0.3758789]
[1757194992177,1.27187141,110230.0,110220.0,0.3758789]
[1757195000786,1.27187141,110230.0,110220.0,0.53916537]
[1757195004987,1.27187141,110230.0,110220.0,0.3758789]
[1757195011595,0.45115141,110230.0,110220.0,0.3758789]
[1757195011793,1.27139141,110230.0,110220.0,0.3758789]
[1757195018002,1.27139141,110230.0,110220.0,0.53916537]
[1757195024510,1.09986985,110230.0,110220.0,0.53916537]
[1757195024804,1.12259985,110230.0,110220.0,0.54916537]
[1757195026209,1.19556715,110230.0,110220.0,0.54916537]
[1757195027610,1.19556715,110230.0,110220.0,0.21306647]
[1757195027808,1.19556715,110230.0,110220.0,0.66342589]
[1757195028314,1.19556715,110230.0,110220.0,0.50013942]
[1757195028513,1.20485836,110230.0,110220.0,0.50013942]
[1757195030813,1.20477836,110230.0,110220.0,0.50013942]
[1757195031013,1.20477836,110230.0,110220.0,0.3858789]
[1757195033310,1.20473836,110230.0,110220.0,0.3858789]
[1757195033617,0.38461836,110230.0,110220.0,0.3858789]
[1757195033813,0.94738624,110230.0,110220.0,0.3858789]
[1757195034317,0.94738624,110230.0,110220.0,0.50013942]
[1757195035013,0.94738624,110230.0,110220.0,0.3858789]
[1757195035917,0.94738624,110230.0,110220.0,0.50013942]
[1757195039020,0.94738624,110230.0,110220.0,0.3858789]
[1757195040717,0.94734624,110230.0,110220.0,0.3858789]
[1757195043512,0.12726624,110230.0,110220.0,0.3858789]
[1757195043717,0.73746624,110230.0,110220.0,0.3858789]
[1757195044118,0.94734624,110230.0,110220.0,0.3858789]
[1757195046021,0.94734624,110230.0,110220.0,0.39920565]
[1757195047425,0.94734624,110230.0,110220.0,0.73527045]
[1757195048623,0.94734624,110230.0,110220.0,0.06310675]
[1757195048921,0.94734624,110230.0,110220.0,0.73527045]
[1757195049317,0.94734624,110230.0,110220.0,0.8494776]
[1757195050123,0.94634624,110230.0,110220.0,0.8494776]
[1757195050420,0.94634624,110230.0,110220.0,0.8504776]
[1757195051123,0.94634624,110230.0,110220.0,0.83715085]
[1757195053422,0.87337894,110230.0,110220.0,0.83715085]
[1757195055926,0.87337894,110230.0,110220.0,0.85034408]
[1757195056622,0.87337894,110230.0,110220.0,0.73613713]
[1757195057326,0.87337894,110230.0,110220.0,0.8994236]
[1757195057729,0.87337894,110230.0,110220.0,0.89942359]
[1757195057928,0.87337894,110230.0,110220.0,0.88623017]
[1757195069435,0.87337894,110230.0,110220.0,0.7229437]
[1757195069436,1.22337894,110230.0,110220.0,0.7229437]
[1757195071139,1.22337894,110230.0,110220.0,0.7219437]
[1757195072041,1.22437894,110230.0,110220.0,0.7219437]
[1757195074242,1.22437894,110230.0,110220.0,0.04978]
[1757195074436,1.22437894,110230.0,110220.0,0.7219437]
[1757195075137,1.22437894,110230.0,110220.0,0.88523017]
[1757195079048,1.22437894,110230.0,110220.0,0.7219437]
[1757195099570,1.20310121,110230.0,110220.0,0.7219437]
[1757195107475,1.20310121,110230.0,110220.0,0.38589257]
[1757195108673,1.20310121,110230.0,110220.0,0.5002417]
[1757195119589,1.20310121,110230.0,110220.0,0.38589257]
[1757195124494,1.20310121,110230.0,110220.0,0.50024139]
[1757195127102,1.20310121,110230.0,110220.0,0.38589257]
[1757195128904,1.20310121,110230.0,110220.0,0.5002392]
[1757195130907,1.20310121,110230.0,110220.0,0.38589257]
[1757195158039,1.20310121,110230.0,110220.0,0.54917904]
[1757195162841,1.20310121,110230.0,110220.0,0.38589257]
[1757195167449,1.20310121,110230.0,110220.0,0.38588874]
[1757195173651,1.18286121,110230.0,110220.0,0.38588874]
[1757195174855,1.18286121,110230.0,110220.0,0.72199748]
[1757195179856,1.18286121,110230.0,110220.0,0.88528395]
[1757195189370,1.18286121,110230.0,110220.0,0.72199748]
[1757195199273,1.18286121,110230.0,110220.0,0.72299748]
[1757195199667,1.18186121,110230.0,110220.0,0.72299748]
[1757195199973,1.18186121,110230.0,110220.0,0.72199748]
[1757195200976,1.18286121,110230.0,110220.0,0.72199748]
[1757195207982,1.18286121,110230.0,110220.0,0.88528395]
[1757195209586,1.18286121,110230.0,110220.0,0.72199748]
[1757195224091,1.18286121,110230.0,110220.0,0.88528395]
[1757195229501,1.18286121,110230.0,110220.0,0.5491622]
[1757195233706,1.18286121,110230.0,110220.0,0.38587573]
[1757195237412,1.18286121,110230.0,110220.0,0.50018011]
[1757195246210,0.36302121,110230.0,110220.0,0.50018011]
[1757195246415,0.00013586,110240.0,110220.0,1.17698034]
[1757195246616,0.34013586,110240.0,110230.0,0.37063573]
[1757195246817,0.34013586,110240.0,110230.0,0.42063573]
[1757195247217,0.34013586,110240.0,110230.0,0.5348156]
[1757195247712,0.08113586,110240.0,110230.0,0.42063573]
[1757195247912,0.08113586,110240.0,110230.0,0.42516573]
[1757195248610,0.08013586,110240.0,110230.0,0.42516573]
[1757195248819,0.08213586,110240.0,110230.0,0.42516573]
[1757195249219,0.08313586,110240.0,110230.0,0.42516573]
[1757195253222,0.08313586,110240.0,110230.0,0.53914674]
[1757195255623,0.34313586,110240.0,110230.0,0.53914674]
[1757195260828,0.34313586,110240.0,110230.0,0.42516573]
[1757195262428,0.34313586,110240.0,110230.0,0.53909605]
[1757195263624,0.00313586,110240.0,110230.0,0.53909605]
[1757195265729,0.00313586,110240.0,110230.0,0.42516573]
[1757195278137,0.00313586,110240.0,110230.0,0.5884522]
[1757195282738,0.02420586,110240.0,110230.0,0.5884522]
[1757195283339,0.00313586,110240.0,110230.0,0.5884522]
[1757195283639,0.02420586,110240.0,110230.0,0.5884522]
[1757195284042,0.00313586,110240.0,110230.0,0.5884522]
[1757195289342,0.00313586,110240.0,110230.0,0.8384522]
[1757195289544,0.00313586,110240.0,110230.0,1.08259398]
[1757195290542,0.00313586,110240.0,110230.0,1.17329708]
[1757195290738,0.00313586,110240.0,110230.0,1.08259398]
[1757195293947,0.00313586,110240.0,110230.0,1.09161567]
[1757195300853,0.00313586,110240.0,110230.0,1.25474764]
[1757195302451,0.00313586,110240.0,110230.0,1.09161567]
[1757195309457,0.00313586,110240.0,110230.0,1.25473417]
[1757195310749,0.00313586,110240.0,110230.0,1.00473417]
[1757195312560,0.00313586,110240.0,110230.0,0.84161567]
[1757195313455,0.00313586,110240.0,110230.0,1.00473417]
[1757195317461,0.00313586,110240.0,110230.0,1.09543727]
[1757195319662,0.00313586,110240.0,110230.0,1.08641558]
[1757195322669,0.00313586,110240.0,110230.0,1.0953279]
[1757195323867,0.00313586,110240.0,110230.0,0.9322094]
[1757195326265,0.00313586,110240.0,110230.0,1.14479702]
[1757195326966,0.00313586,110240.0,110230.0,1.48069211]
[1757195327263,0.09358065,110260.0,110250.0,0.70745018]
[1757195327467,0.36209081,110260.0,110250.0,0.75745018]
[1757195328669,0.43354395,110260.0,110250.0,0.76198018]
[1757195328968,0.43654395,110260.0,110250.0,0.76198018]
[1757195329168,0.44054395,110260.0,110250.0,0.76198018]
[1757195332370,0.11054395,110260.0,110250.0,0.76198018]
[1757195333078,0.11054395,110260.0,110250.0,0.87614256]
[1757195341188,0.11054395,110260.0,110250.0,0.54024747]
[1757195341788,0.10654395,110260.0,110250.0,0.54024747]
[1757195342087,0.10554395,110260.0,110250.0,0.54024747]
[1757195342275,0.10754395,110260.0,110250.0,0.54024747]
[1757195342482,0.10754395,110260.0,110250.0,0.87614256]
[1757195342681,0.10554395,110260.0,110250.0,0.87614256]
[1757195342880,0.10754395,110260.0,110250.0,0.87614256]
[1757195343284,0.10754395,110260.0,110250.0,0.76198018]
[1757195343781,0.35754395,110260.0,110250.0,0.42608509]
[1757195348090,0.35754395,110260.0,110250.0,0.54025533]
[1757195348292,0.35754395,110260.0,110250.0,0.20436024]
[1757195348589,0.35754395,110260.0,110250.0,0.54025533]
[1757195349486,0.35754395,110260.0,110250.0,0.54027187]
[1757195358197,0.35754395,110260.0,110250.0,0.42610163]
[1757195379315,0.10754395,110260.0,110250.0,0.42610163]
[1757195384914,0.03609081,110260.0,110250.0,0.42610163]
[1757195385115,0.01323081,110260.0,110250.0,1.10269986]
[1757195386520,0.004,110260.0,110250.0,1.10269986]
[1757195386721,0.004,110260.0,110250.0,1.01201326]
[1757195387120,0.004,110260.0,110250.0,1.17511721]
[1757195387820,0.004,110260.0,110250.0,1.01201326]
[1757195392118,0.004,110260.0,110250.0,1.83077326]
[1757195394125,0.01313987,110260.0,110250.0,1.83077326]
[1757195397716,0.01313987,110260.0,110250.0,1.99387721]
[1757195409444,0.01313987,110260.0,110250.0,1.99371623]
[1757195416545,0.01313987,110260.0,110250.0,1.17495623]
[1757195416744,0.01313987,110260.0,110250.0,1.99363623]
[1757195416946,0.01313987,110260.0,110250.0,1.83053228]
[1757195421557,0.03571987,110260.0,110250.0,1.58053228]
[1757195428154,0.03571987,110260.0,110250.0,1.74363623]
[1757195432357,0.03571987,110260.0,110250.0,1.58053228]
[1757195433958,0.01313987,110260.0,110250.0,1.58053228]
[1757195437059,0.03571987,110260.0,110250.0,1.58089228]
[1757195441667,0.03571987,110260.0,110250.0,1.58081228]
[1757195446268,0.01313987,110260.0,110250.0,1.58081228]
[1757195446767,0.01313987,110260.0,110250.0,1.74391623]
[1757195448070,0.03426987,110260.0,110250.0,1.74379623]
[1757195450168,0.03426987,110260.0,110250.0,1.58069228]
[1757195450869,0.01313987,110260.0,110250.0,1.58069228]
[1757195451270,0.01313987,110260.0,110250.0,0.90903]
[1757195451471,0.01313987,110260.0,110250.0,1.58069228]
[1757195457576,0.01313987,110260.0,110250.0,0.76185228]
[1757195457874,0.01313987,110260.0,110250.0,1.58129228]
[1757195458672,0.01313987,110260.0,110250.0,1.58125228]
[1757195460977,0.28426987,110260.0,110250.0,0.76185228]
[1757195461477,0.28426987,110260.0,110250.0,1.58117228]
[1757195461674,0.28426987,110260.0,110250.0,1.24534114]
[1757195461975,0.65426987,110260.0,110250.0,1.24534114]
[1757195462375,0.65426987,110260.0,110250.0,1.58117228]
[1757195462782,0.65426987,110260.0,110250.0,1.24534114]
[1757195463865,0.65426987,110260.0,110250.0,1.58117228]
[1757195464878,0.65426987,110260.0,110250.0,1.24534114]
[1757195465579,0.65426987,110260.0,110250.0,1.58117228]
[1757195465881,0.65426987,110260.0,110250.0,1.24534114]
[1757195466480,0.65426987,110260.0,110250.0,1.58117228]
[1757195469384,0.65426987,110260.0,110250.0,0.42602114]
[1757195469572,0.65426987,110260.0,110250.0,1.24518114]
[1757195470481,0.30426987,110260.0,110250.0,1.24518114]
[1757195470683,0.65426987,110260.0,110250.0,1.24518114]
[1757195471583,0.65426987,110260.0,110250.0,1.24525516]
[1757195472977,0.30426987,110260.0,110250.0,1.24525516]
[1757195473281,0.65426987,110260.0,110250.0,1.24525516]
[1757195474585,0.30426987,110260.0,110250.0,1.24525516]
[1757195474782,0.60426987,110260.0,110250.0,1.24525516]
[1757195475279,0.28426987,110260.0,110250.0,1.24525516]
[1757195475478,0.66426987,110260.0,110250.0,1.24525516]
[1757195479592,0.66426987,110260.0,110250.0,0.42609516]
[1757195485202,0.30426987,110260.0,110250.0,0.42609516]
[1757195485398,0.28426987,110260.0,110250.0,0.42609516]
[1757195485604,0.59426987,110260.0,110250.0,0.42609516]
[1757195499304,0.34426987,110260.0,110250.0,0.42609516]
[1757195518118,0.05426987,110260.0,110250.0,0.42609516]
[1757195525724,0.05426987,110260.0,110250.0,0.58919911]
[1757195529730,0.05426987,110260.0,110250.0,0.42609516]
[1757195531534,0.05426987,110260.0,110250.0,0.76198346]
[1757195532735,0.05226987,110260.0,110250.0,0.76198346]
[1757195532934,0.05326987,110260.0,110250.0,0.76198346]
[1757195533528,0.05426987,110260.0,110250.0,0.76198346]
[1757195534927,0.05226987,110260.0,110250.0,0.76198346]
[1757195535235,0.05326987,110260.0,110250.0,0.76198346]
[1757195535626,0.05226987,110260.0,110250.0,0.76198346]
[1757195538640,0.05226987,110260.0,110250.0,0.92508741]
[1757195549949,0.05226987,110260.0,110250.0,0.76198346]
[1757195555353,0.05226987,110260.0,110250.0,0.42608673]
[1757195558261,0.36226987,110260.0,110250.0,0.42608673]
[1757195561360,0.05226987,110260.0,110250.0,0.42608673]
[1757195563357,0.05486987,110260.0,110250.0,0.42608673]
[1757195564463,0.05486987,110260.0,110250.0,0.58919068]
[1757195570065,0.05486987,110260.0,110250.0,0.42608673]
[1757195586072,0.41486987,110260.0,110250.0,0.42608673]
[1757195586473,0.05486987,110260.0,110250.0,0.42608673]
[1757195587170,0.05486987,110260.0,110250.0,0.09019]
[1757195587471,0.03486987,110260.0,110250.0,0.76198346]
[1757195587672,0.03486987,110260.0,110250.0,0.42608673]
[1757195591874,0.03486987,110260.0,110250.0,0.09019]
[1757195592175,0.03486987,110260.0,110250.0,0.42608673]
[1757195593478,0.03486987,110260.0,110250.0,0.42609399]
[1757195593976,0.40486987,110260.0,110250.0,0.09019]
[1757195594275,0.40486987,110260.0,110250.0,0.42609399]
[1757195600179,0.03486987,110260.0,110250.0,0.42609399]
[1757195601081,0.03386987,110260.0,110250.0,0.42609399]
[1757195601272,0.03486987,110260.0,110250.0,0.42609399]
[1757195601473,0.01373987,110260.0,110250.0,0.42609399]
[1757195602079,0.01473987,110260.0,110250.0,0.42609399]
[1757195602274,0.03797987,110260.0,110250.0,0.42609399]
[1757195603377,0.05797987,110260.0,110250.0,0.42609399]
[1757195603579,0.38797987,110260.0,110250.0,0.42609399]
[1757195605178,0.38797987,110260.0,110250.0,0.09019]
[1757195605379,0.38797987,110260.0,110250.0,0.42609399]
[1757195607281,0.38797987,110260.0,110250.0,0.58919794]
[1757195608077,0.38797987,110260.0,110250.0,0.42609399]
[1757195610884,0.03797987,110260.0,110250.0,0.42609399]
[1757195611184,0.35797987,110260.0,110250.0,0.42609399]
[1757195617780,0.35797987,110260.0,110250.0,0.58919794]
[1757195618487,0.35797987,110260.0,110250.0,0.42609399]
[1757195619288,0.35797987,110260.0,110250.0,0.58919794]
[1757195620693,0.03797987,110260.0,110250.0,0.58919794]
[1757195620883,0.05797987,110260.0,110250.0,0.58919794]
[1757195624793,0.41797987,110260.0,110250.0,0.58919794]
[1757195625392,0.03797987,110260.0,110250.0,0.58919794]
[1757195625698,0.05797987,110260.0,110250.0,0.58919794]
[1757195629792,0.05797987,110260.0,110250.0,0.42609399]
[1757195637316,0.01473987,110260.0,110250.0,0.42609399]
[1757195646625,0.01473987,110260.0,110250.0,0.09019]
[1757195646824,0.01473987,110260.0,110250.0,0.42609399]
[1757195648026,0.01473987,110260.0,110250.0,0.76199798]
[1757195650325,0.01473987,110260.0,110250.0,0.42609399]
[1757195653427,0.01473987,110260.0,110250.0,0.76196832]
[1757195658832,0.01473987,110260.0,110250.0,0.92507227]
[1757195659734,0.01473987,110260.0,110250.0,0.76196832]
[1757195665239,0.01473987,110260.0,110250.0,0.92507227]
[1757195669344,0.01473987,110260.0,110250.0,0.76196832]
[1757195674948,0.03736987,110260.0,110250.0,0.76196832]
[1757195675550,0.01473987,110260.0,110250.0,0.76196832]
[1757195677351,0.01473987,110260.0,110250.0,0.92507227]
[1757195677743,0.01373987,110260.0,110250.0,0.92507227]
[1757195678551,0.01273987,110260.0,110250.0,0.92507227]
[1757195679144,0.01273987,110260.0,110250.0,0.25329395]
[1757195679552,0.01273987,110260.0,110250.0,0.92507227]
[1757195679760,0.37273987,110260.0,110250.0,0.92507227]
[1757195680853,0.36273987,110260.0,110250.0,0.92507227]
[1757195681551,0.36273987,110260.0,110250.0,0.58918311]
[1757195681854,0.36273987,110260.0,110250.0,1.40926311]
[1757195683549,0.36273987,110260.0,110250.0,1.74515227]
[1757195684048,0.36273987,110260.0,110250.0,1.40918311]
[1757195687056,0.36273987,110260.0,110250.0,1.24607916]
[1757195687356,0.36373987,110260.0,110250.0,1.24607916]
[1757195688360,0.36273987,110260.0,110250.0,1.24607916]
[1757195688662,0.36373987,110260.0,110250.0,1.24607916]
[1757195692965,0.38522987,110260.0,110250.0,0.91019]
[1757195693165,0.38522987,110260.0,110250.0,1.24607916]
[1757195693463,0.38522987,110260.0,110250.0,0.91019]
[1757195693666,0.38522987,110260.0,110250.0,1.24607916]
[1757195694167,0.36373987,110260.0,110250.0,1.24607916]
[1757195698369,0.38522987,110260.0,110250.0,0.91019]
[1757195698665,0.38522987,110260.0,110250.0,1.24607916]
[1757195700768,0.38522987,110260.0,110250.0,0.91019]
[1757195701069,0.38522987,110260.0,110250.0,1.24607916]
[1757195708077,0.38522987,110260.0,110250.0,0.91019]
[1757195708270,0.38522987,110260.0,110250.0,1.24607916]
[1757195715689,0.38522987,110260.0,110250.0,1.24610311]
[1757195718892,0.38522987,110260.0,110250.0,0.91019]
[1757195719185,0.38522987,110260.0,110250.0,1.24610311]
[1757195726995,0.38522987,110260.0,110250.0,0.42610311]
[1757195727490,0.38522987,110260.0,110250.0,1.24706311]
[1757195728094,0.38522987,110260.0,110250.0,0.42610311]
[1757195728288,0.38522987,110260.0,110250.0,1.24706311]
[1757195728493,0.38522987,110260.0,110250.0,1.24702311]
[1757195730694,0.38522987,110260.0,110250.0,0.42610311]
[1757195730892,0.38522987,110260.0,110250.0,1.24710311]
[1757195731092,0.38522987,110260.0,110250.0,0.42610311]
[1757195731283,0.38522987,110260.0,110250.0,1.24710311]
[1757195763709,0.38522987,110260.0,110250.0,0.42610311]
[1757195763908,0.38522987,110260.0,110250.0,1.24682311]
[1757195766407,0.38522987,110260.0,110250.0,0.42610311]
[1757195766608,0.38522987,110260.0,110250.0,1.24674311]
[1757195768009,0.38522987,110260.0,110250.0,0.42610311]
[1757195768205,0.38522987,110260.0,110250.0,1.24666311]
[1757195772312,0.03522987,110260.0,110250.0,1.24666311]
[1757195777415,0.03522987,110260.0,110250.0,1.24665819]
[1757195778418,0.03522987,110260.0,110250.0,0.42609819]
[1757195778614,0.03522987,110260.0,110250.0,1.24633819]
[1757195780711,0.03522987,110260.0,110250.0,1.40944214]
[1757195782420,0.37113806,110260.0,110250.0,0.09019]
[1757195782621,0.37113806,110260.0,110250.0,0.42609819]
[1757195782920,0.85113806,110260.0,110250.0,0.42609819]
[1757195783518,0.85213806,110260.0,110250.0,0.42609819]
[1757195784019,0.85413806,110260.0,110250.0,0.42609819]
[1757195785119,0.85313806,110260.0,110250.0,0.42609819]
[1757195785321,0.85613806,110260.0,110250.0,0.42609819]
[1757195787918,0.85613806,110260.0,110250.0,0.09019]
[1757195788110,1.19958625,110260.0,110250.0,0.09019]
[1757195788315,0.86367806,110260.0,110250.0,0.09019]
[1757195788612,0.85613806,110260.0,110250.0,0.42609819]
[1757195789210,0.85613806,110260.0,110250.0,0.09019]
[1757195792524,0.52022987,110260.0,110250.0,0.09019]
[1757195792726,0.85613806,110260.0,110250.0,0.09019]
[1757195793825,1.19204625,110260.0,110250.0,0.09019]
[1757195794223,0.85613806,110260.0,110250.0,0.09019]
[1757195794426,1.19204625,110260.0,110250.0,0.05453]
[1757195797231,1.18804625,110260.0,110250.0,0.05453]
[1757195797429,1.18504625,110260.0,110250.0,0.05453]
[1757195797728,1.18504625,110260.0,110250.0,0.05653]
[1757195798225,1.18504625,110260.0,110250.0,0.05853]
[1757195799329,0.93504625,110260.0,110250.0,0.05853]
[1757195817345,0.9565293,110260.0,110250.0,0.05853]
[1757195824050,0.28471292,110260.0,110250.0,0.09342]
[1757195824257,1.10799292,110260.0,110250.0,0.09342]
[1757195824447,1.7798093,110260.0,110250.0,0.09342]
[1757195825148,1.10799292,110260.0,110250.0,0.09342]
[1757195825456,1.7798093,110260.0,110250.0,0.09342]
[1757195829651,0.9565293,110260.0,110250.0,0.09342]
[1757195829843,1.7880493,110260.0,110250.0,0.09342]
[1757195837357,1.7880493,110260.0,110250.0,0.07964]
[1757195837560,1.45233428,110260.0,110250.0,0.05853]
[1757195845967,1.11623292,110260.0,110250.0,0.07964]
[1757195846169,1.45233428,110260.0,110250.0,0.07964]
[1757195849470,1.45233428,110260.0,110250.0,0.05853]
[1757195849669,1.11623292,110260.0,110250.0,0.07964]
[1757195849869,1.45233428,110260.0,110250.0,0.07964]
[1757195853377,1.45233428,110260.0,110250.0,0.02964]
[1757195855071,1.45233428,110260.0,110250.0,0.00853]
[1757195856074,1.45233428,110260.0,110250.0,0.02964]
[1757195858076,1.45233428,110260.0,110250.0,0.00853]
[1757195859983,1.45233428,110260.0,110250.0,0.02964]
[1757195868383,1.45233428,110260.0,110250.0,0.00853]
[1757195869682,0.28471292,110260.0,110250.0,0.03162]
[1757195869884,1.11727292,110260.0,110250.0,0.04483]
[1757195870075,1.45337428,110260.0,110250.0,0.04483]
[1757195870381,1.11727292,110260.0,110250.0,0.04483]
[1757195870680,1.45337428,110260.0,110250.0,0.04483]
[1757195873586,1.45337428,110260.0,110250.0,0.03162]
[1757195874890,1.11727292,110260.0,110250.0,0.04483]
[1757195875682,1.45337428,110260.0,110250.0,0.04483]
[1757195876190,1.11727292,110260.0,110250.0,0.04483]
[1757195876386,1.45337428,110260.0,110250.0,0.04483]
[1757195876986,1.11727292,110260.0,110250.0,0.04483]
[1757195877287,1.45337428,110260.0,110250.0,0.04483]
[1757195878094,1.11727292,110260.0,110250.0,0.04483]
[1757195878290,1.45337428,110260.0,110250.0,0.04483]
[1757195878783,1.11727292,110260.0,110250.0,0.04483]
[1757195878987,1.45337428,110260.0,110250.0,0.04483]
[1757195879191,1.11727292,110260.0,110250.0,0.04483]
[1757195879585,1.45337428,110260.0,110250.0,0.04483]
[1757195879784,1.11727292,110260.0,110250.0,0.04483]
[1757195880287,1.45337428,110260.0,110250.0,0.04483]
[1757195880989,1.46913428,110260.0,110250.0,0.07483]
[1757195883192,1.13303292,110260.0,110250.0,0.07483]
[1757195883380,1.46913428,110260.0,110250.0,0.07483]
[1757195883794,1.13303292,110260.0,110250.0,0.07483]
[1757195884292,1.46913428,110260.0,110250.0,0.07483]
[1757195884694,1.13303292,110260.0,110250.0,0.07483]
[1757195885289,1.46913428,110260.0,110250.0,0.07483]
[1757195885595,1.13303292,110260.0,110250.0,0.07483]
[1757195885797,1.46913428,110260.0,110250.0,0.07483]
[1757195886598,1.13303292,110260.0,110250.0,0.07483]
[1757195886896,1.46913428,110260.0,110250.0,0.07483]
[1757195891603,1.13403292,110260.0,110250.0,0.07283]
[1757195891902,1.47013428,110260.0,110250.0,0.07083]
[1757195897406,1.47006745,110260.0,110250.0,0.07083]
[1757195897609,1.80610198,110260.0,110250.0,0.07083]
[1757195900114,1.13403292,110260.0,110250.0,0.07083]
[1757195900318,1.80610198,110260.0,110250.0,0.07083]
[1757195902006,1.13403292,110260.0,110250.0,0.07083]
[1757195902203,1.80610198,110260.0,110250.0,0.07083]
[1757195907707,1.80610198,110260.0,110250.0,0.04083]
[1757195911521,1.13403292,110260.0,110250.0,0.04083]
[1757195911719,1.80610198,110260.0,110250.0,0.04083]
[1757195916524,1.13403292,110260.0,110250.0,0.04083]
[1757195916716,1.80610198,110260.0,110250.0,0.04083]
[1757195918022,1.13403292,110260.0,110250.0,0.04083]